[Event "106th British-ch 2019"]
[Site "Torquay"]
[Date "2019.08.01"]
[Round "6.8"]
[White "Fernandez, Daniel Howard"]
[Black "Bates, Richard A"]
[Result "1-0"]
[ECO "A30"]
[WhiteElo "2466"]
[BlackElo "2352"]
[Annotator "ChessBase"]
[PlyCount "100"]
[EventDate "2019.07.27"]
[EventType "swiss"]
[EventCountry "GBR"]
[SourceTitle "playchess.com"]
[Source "ChessBase"]
[SourceQuality "1"]
[TimeControl "40/5400+30:1800+30"]

1. Nf3 {[%emt 0:21:45]} Nf6 {[%emt 0:00:45]} 2. b3 {[%emt 0:00:19]} g6 {[%emt 0:02:20]} 3. Bb2 {[%emt 0:00:02]} Bg7 {[%emt 0:00:09]} 4. e3 {[%emt 0:00:13]} O-O {[%emt 0:00:57]} 5. Be2 {[%emt 0:00:02]} c5 {[%emt 0:02:47]} 6. O-O {[%emt 0:00:33]} Nc6 {[%emt 0:02:49]} 7. c4 {[%emt 0:00:03]} b6 {[%emt 0:07:09]} 8. d4 {[%emt 0:00:07]} cxd4 {[%emt 0:00:25]} 9. Nxd4 {[%emt 0:00:02]} Bb7 {[%emt 0:01:03]} 10. Bf3 {[%emt 0:00:23]} Na5 {[%emt 0:09:34]} 11. Bxb7 {[%emt 0:01:54]} Nxb7 {[%emt 0:00:06]} 12. Nc3 {[%emt 0:00:03]} Nc5 {[%emt 0:09:31]} 13. Re1 {[%emt 0:01:04]} Nfe4 {[%emt 0:08:34]} 14. Nxe4 {[%emt 0:02:57]} Nxe4 {[%emt 0:00:08]} 15. Qc2 {[%emt 0:00:05]} Nf6 {[%emt 0:08:50]} 16. Rad1 {[%emt 0:00:57]} Qc7 {[%emt 0:02:21]} 17. Nb5 {[%emt 0:00:32]} Qb7 {[%emt 0:01:43]} 18. Nc3 {[%emt 0:00:33]} Rac8 {[%emt 0:03:10]} 19. e4 {[%emt 0:00:56]} d6 {[%emt 0:03:56]} 20. a4 {[%emt 0:00:08]} a6 {[%emt 0:01:48]} 21. Qe2 {[%emt 0:00:29]} Rc5 {[%emt 0:03:14]} 22. Bc1 {[%emt 0:01:41]} Nd7 {[%emt 0:04:23]} 23. Nd5 {[%emt 0:00:09]} e6 {[%emt 0:00:13]} 24. b4 {[%emt 0:01:05]} exd5 {[%emt 0:02:46]} 25. bxc5 {[%emt 0:00:02]} Nxc5 {[%emt 0:01:01]} 26. Rxd5 {[%emt 0:00:03]} Nxa4 {[%emt 0:00:51]} 27. Rxd6 {[%emt 0:00:18]} b5 {[%emt 0:02:12]} 28. cxb5 {[%emt 0:00:09]} axb5 {[%emt 0:00:09]} 29. e5 {[%emt 0:01:29]} b4 {[%emt 0:03:25]} 30. e6 {[%emt 0:00:07]} fxe6 {[%emt 0:00:26]} 31. Qxe6+ {[%emt 0:00:18]} Qf7 {[%emt 0:00:14]} 32. Qxf7+ {[%emt 0:01:22]} Rxf7 {[%emt 0:00:09]} 33. Re8+ {[%emt 0:03:52]} Rf8 {[%emt 0:00:23]} 34. Rdd8 {[%emt 0:00:51]} Rxe8 {[%emt 0:02:45]} 35. Rxe8+ {[%emt 0:00:02]} Kf7 {[%emt 0:00:10]} 36. Rb8 {[%emt 0:00:16]} Bc3 {[%emt 0:01:05]} 37. Kf1 {[%emt 0:02:58]} Ke6 {[%emt 0:01:36]} 38. Ke2 {[%emt 0:00:12]} Kd5 {[%emt 0:00:12]} 39. g4 {[%emt 0:00:09]} Kc4 {[%emt 0:02:02]} 40. Rc8+ {[%emt 0:00:03]} Kb3 {[%emt 0:01:16]} 41. Kd3 {[%emt 0:30:08]} Bf6 {[%emt 0:13:44]} 42. f4 {[%emt 0:00:00]} Be7 {[%emt 0:00:04]} 43. f5 {[%emt 0:00:00]} gxf5 {[%emt 0:02:01]} 44. gxf5 {[%emt 0:00:00]} Nb6 {[%emt 0:03:50]} 45. Rc7 {[%emt 0:00:00]} Bd8 {[%emt 0:00:42]} 46. Rc6 {[%emt 0:00:00]} Ka4 {[%emt 0:02:37]} 47. Be3 {[%emt 0:00:00]} Nd5 {[%emt 0:00:52]} 48. Ra6+ {[%emt 0:00:00]} Kb5 {[%emt 0:00:25]} 49. Rd6 {[%emt 0:00:00]} Nxe3 {[%emt 0:00:29]} 50. Rxd8 {[%emt 0:00:00]} Nxf5 {[%emt 0:00:09]} 1-0

[Event "106th British-ch 2019"]
[Site "Torquay"]
[Date "2019.08.01"]
[Round "6.9"]
[White "Houska, Jovanka"]
[Black "Claridge-Hansen, William"]
[Result "1-0"]
[ECO "E16"]
[WhiteElo "2422"]
[BlackElo "2297"]
[Annotator "NA"]
[PlyCount "79"]
[EventDate "2019.07.27"]
[EventType "swiss"]
[EventCountry "GBR"]
[SourceTitle "playchess.com"]
[Source "ChessBase"]
[SourceQuality "1"]
[TimeControl "40/5400+30:1800+30"]

1. d4 {[%emt 0:00:00]} Nf6 {[%emt 0:00:00]} 2. Nf3 {[%emt 0:00:07]} e6 {[%emt 0:00:00]} 3. c4 {[%emt 0:00:37]} b6 {[%emt 0:00:10]} 4. g3 {[%emt 0:00:09]} Bb7 {[%emt 0:00:24]} 5. Bg2 {[%emt 0:00:05]} Bb4+ {[%emt 0:00:24]} 6. Bd2 {[%emt 0:00:06]} c5 {[%emt 0:00:17]} 7. Bxb4 {[%emt 0:01:58]} cxb4 {[%emt 0:00:19]} 8. O-O {[%emt 0:00:05]} O-O {[%emt 0:00:23]} 9. Qd3 {[%emt 0:00:20]} d6 {[%emt 0:02:44]} 10. Nbd2 {[%emt 0:00:45]} Qc7 {[%emt 0:01:03]} 11. Rac1 {[%emt 0:00:27]} e5 {[%emt 0:12:54]} 12. e4 {[%emt 0:07:12]} Nc6 {[%emt 0:07:52]} 13. Rfd1 {[%emt 0:00:21]} Rfe8 {[%emt 0:02:40]} 14. Nf1 {[%emt 0:07:05]} exd4 {[%emt 0:15:31]} 15. Re1 {[%emt 0:28:18]} Ne5 {[%emt 0:04:45]} 16. Qxd4 {[%emt 0:00:10]} Qc5 {[%emt 0:02:41]} 17. Qxc5 {[%emt 0:01:44]} Nxf3+ {[%emt 0:01:32]} 18. Bxf3 {[%emt 0:00:07]} dxc5 {[%emt 0:15:09]} 19. Nd2 {[%emt 0:01:41]} Rad8 {[%emt 0:04:12]} 20. Rcd1 {[%emt 0:01:20]} Rd3 {[%emt 0:04:59]} 21. Be2 {[%emt 0:00:06]} Rd4 {[%emt 0:00:53]} 22. f3 {[%emt 0:00:02]} Red8 {[%emt 0:00:36]} 23. Nf1 {[%emt 0:00:33]} Nd7 {[%emt 0:01:34]} 24. Rxd4 {[%emt 0:04:37]} cxd4 {[%emt 0:00:02]} 25. Rd1 {[%emt 0:00:19]} Nc5 {[%emt 0:02:23]} 26. Ne3 {[%emt 0:01:35]} d3 {[%emt 0:04:22]} 27. Bf1 {[%emt 0:05:55]} Rd4 {[%emt 0:01:52]} 28. Kf2 {[%emt 0:04:03]} g6 {[%emt 0:03:10]} 29. b3 {[%emt 0:00:37]} Bxe4 {[%emt 0:01:49]} 30. fxe4 {[%emt 0:01:19]} Nxe4+ {[%emt 0:00:01]} 31. Kf3 {[%emt 0:00:35]} d2 {[%emt 0:00:36]} 32. Bd3 {[%emt 0:04:15]} Nc3 {[%emt 0:04:09]} 33. Rxd2 {[%emt 0:00:05]} Nb1 {[%emt 0:02:29]} 34. Rb2 {[%emt 0:01:01]} Rxd3 {[%emt 0:00:13]} 35. Rxb1 {[%emt 0:00:04]} Rd2 {[%emt 0:00:06]} 36. h4 {[%emt 0:01:01]} Rxa2 {[%emt 0:00:15]} 37. Nd5 {[%emt 0:00:03]} Ra3 {[%emt 0:01:26]} 38. Nxb4 {[%emt 0:00:08]} a5 {[%emt 0:00:07]} 39. Nc2 {[%emt 0:00:05]} Ra2 {[%emt 0:00:07]} 40. Ne3 {[%emt 0:00:06]} 1-0

[Event "106th British-ch 2019"]
[Site "Torquay"]
[Date "2019.08.01"]
[Round "6.10"]
[White "Bradbury, Neil H"]
[Black "Pigott, John C"]
[Result "1/2-1/2"]
[ECO "D76"]
[WhiteElo "2322"]
[BlackElo "2384"]
[Annotator "NA"]
[PlyCount "47"]
[EventDate "2019.07.27"]
[EventType "swiss"]
[EventCountry "GBR"]
[SourceTitle "playchess.com"]
[Source "ChessBase"]
[SourceQuality "1"]
[TimeControl "40/5400+30:1800+30"]

1. d4 {[%emt 0:00:00]} Nf6 {[%emt 0:00:00]} 2. c4 {[%emt 0:00:40]} g6 {[%emt 0:00:27]} 3. Nf3 {[%emt 0:02:02]} Bg7 {[%emt 0:00:22]} 4. g3 {[%emt 0:00:08]} d5 {[%emt 0:00:37]} 5. cxd5 {[%emt 0:00:38]} Nxd5 {[%emt 0:00:08]} 6. Bg2 {[%emt 0:00:13]} Nb6 {[%emt 0:00:07]} 7. O-O {[%emt 0:03:28]} Nc6 {[%emt 0:00:23]} 8. e3 {[%emt 0:08:33]} O-O {[%emt 0:01:58]} 9. Nc3 {[%emt 0:00:16]} e5 {[%emt 0:01:04]} 10. d5 {[%emt 0:04:09]} Na5 {[%emt 0:00:18]} 11. e4 {[%emt 0:04:37]} c6 {[%emt 0:01:55]} 12. Bg5 {[%emt 0:06:39]} f6 {[%emt 0:00:47]} 13. Be3 {[%emt 0:08:45]} cxd5 {[%emt 0:01:33]} 14. exd5 {[%emt 0:02:29]} Nac4 {[%emt 0:16:31]} 15. Bc5 {[%emt 0:11:31]} Rf7 {[%emt 0:00:45]} 16. Qe2 {[%emt 0:00:15]} Bf8 {[%emt 0:21:23]} 17. Bxf8 {[%emt 0:04:24]} Qxf8 {[%emt 0:02:58]} 18. a4 {[%emt 0:02:12]} Qb4 {[%emt 0:12:57]} 19. Ra2 {[%emt 0:12:15]} Bd7 {[%emt 0:07:08]} 20. Rfa1 {[%emt 0:04:07]} a5 {[%emt 0:01:32]} 21. Ne1 {[%emt 0:00:08]} Rc8 {[%emt 0:04:34]} 22. Nd3 {[%emt 0:00:41]} Qb3 {[%emt 0:04:39]} 23. Nc1 {[%emt 0:00:12]} Qb4 {[%emt 0:00:05]} 24. Nd3 {[%emt 0:01:25]} 1/2-1/2

[Event "106th British-ch 2019"]
[Site "Torquay"]
[Date "2019.08.01"]
[Round "6.11"]
[White "Lane, Gary W"]
[Black "Smith, Andrew Philip"]
[Result "1-0"]
[ECO "B06"]
[WhiteElo "2364"]
[BlackElo "2147"]
[Annotator "NA"]
[PlyCount "53"]
[EventDate "2019.07.27"]
[EventType "swiss"]
[EventCountry "GBR"]
[SourceTitle "playchess.com"]
[Source "ChessBase"]
[SourceQuality "1"]
[TimeControl "40/5400+30:1800+30"]

1. e4 {[%emt 0:00:00]} g6 {[%emt 0:01:17]} 2. d4 {[%emt 0:01:05]} Bg7 {[%emt 0:00:15]} 3. Nc3 {[%emt 0:00:13]} c6 {[%emt 0:01:13]} 4. Bc4 {[%emt 0:00:15]} Qb6 {[%emt 0:12:50]} 5. Nf3 {[%emt 0:17:01]} Nh6 {[%emt 0:11:11]} 6. O-O {[%emt 0:02:38]} d5 {[%emt 0:05:31]} 7. exd5 {[%emt 0:06:03]} Bg4 {[%emt 0:04:38]} 8. d6 {[%emt 0:17:44]} e6 {[%emt 0:00:00]} 9. Ne4 {[%emt 0:02:13]} Nf5 {[%emt 0:00:15]} 10. c3 {[%emt 0:00:12]} Nd7 {[%emt 0:06:52]} 11. h3 {[%emt 0:03:53]} Bxf3 {[%emt 0:00:25]} 12. Qxf3 {[%emt 0:00:05]} h5 {[%emt 0:04:38]} 13. Bg5 {[%emt 0:03:53]} h4 {[%emt 0:03:50]} 14. b4 {[%emt 0:02:21]} Rh5 {[%emt 0:30:18]} 15. Rab1 {[%emt 0:01:39]} Kf8 {[%emt 0:02:03]} 16. Nc5 {[%emt 0:03:29]} Ke8 {[%emt 0:01:18]} 17. Na4 {[%emt 0:06:45]} Rxg5 {[%emt 0:05:29]} 18. Nxb6 {[%emt 0:00:20]} Nxb6 {[%emt 0:00:24]} 19. Bb3 {[%emt 0:08:11]} Rd8 {[%emt 0:04:45]} 20. b5 {[%emt 0:03:36]} Rxd6 {[%emt 0:00:32]} 21. bxc6 {[%emt 0:00:14]} bxc6 {[%emt 0:00:24]} 22. a4 {[%emt 0:00:16]} Nd7 {[%emt 0:02:15]} 23. a5 {[%emt 0:00:47]} Rh5 {[%emt 0:00:31]} 24. Bc4 {[%emt 0:02:50]} Ke7 {[%emt 0:00:31]} 25. Rb7 {[%emt 0:00:16]} a6 {[%emt 0:00:18]} 26. Bxa6 {[%emt 0:00:46]} Rd5 {[%emt 0:00:42]} 27. Bc4 {[%emt 0:00:17]} 1-0

[Event "106th British-ch 2019"]
[Site "Torquay"]
[Date "2019.08.01"]
[Round "6.12"]
[White "Arkell, Keith C"]
[Black "Pein, Malcolm"]
[Result "1-0"]
[ECO "A16"]
[WhiteElo "2461"]
[BlackElo "2312"]
[Annotator "ChessBase"]
[PlyCount "103"]
[EventDate "2019.07.27"]
[EventType "swiss"]
[EventCountry "GBR"]
[SourceTitle "playchess.com"]
[Source "ChessBase"]
[SourceQuality "1"]
[TimeControl "40/5400+30:1800+30"]

1. Nf3 {[%emt 0:00:16]} Nf6 {[%emt 0:00:00]} 2. c4 {[%emt 0:00:05]} g6 {[%emt 0:00:13]} 3. Nc3 {[%emt 0:00:06]} Bg7 {[%emt 0:00:20]} 4. g3 {[%emt 0:00:06]} c6 {[%emt 0:01:39]} 5. e4 {[%emt 0:00:16]} d5 {[%emt 0:11:09]} 6. cxd5 {[%emt 0:00:10]} cxd5 {[%emt 0:00:15]} 7. e5 {[%emt 0:00:11]} Nfd7 {[%emt 0:00:15]} 8. d4 {[%emt 0:00:15]} Nb6 {[%emt 0:00:41]} 9. Bg2 {[%emt 0:05:33]} Bg4 {[%emt 0:02:07]} 10. h3 {[%emt 0:00:06]} Bxf3 {[%emt 0:00:03]} 11. Qxf3 {[%emt 0:00:05]} e6 {[%emt 0:06:46]} 12. Nb5 {[%emt 0:05:18]} O-O {[%emt 0:01:03]} 13. b3 {[%emt 0:04:25]} Qd7 {[%emt 0:09:22]} 14. Qd3 {[%emt 0:00:29]} a6 {[%emt 0:04:48]} 15. Nc3 {[%emt 0:02:21]} Nc6 {[%emt 0:01:30]} 16. Ba3 {[%emt 0:00:06]} Rfc8 {[%emt 0:00:07]} 17. O-O {[%emt 0:00:47]} a5 {[%emt 0:06:58]} 18. Rac1 {[%emt 0:15:46]} a4 {[%emt 0:11:32]} 19. Bc5 {[%emt 0:06:28]} Qd8 {[%emt 0:02:52]} 20. Nb5 {[%emt 0:01:52]} axb3 {[%emt 0:03:08]} 21. axb3 {[%emt 0:03:42]} Nd7 {[%emt 0:01:35]} 22. b4 {[%emt 0:03:16]} Ra4 {[%emt 0:06:32]} 23. Rb1 {[%emt 0:06:19]} Nxc5 {[%emt 0:08:31]} 24. bxc5 {[%emt 0:00:07]} Rca8 {[%emt 0:00:20]} 25. Rfd1 {[%emt 0:02:31]} b6 {[%emt 0:01:41]} 26. Rdc1 {[%emt 0:08:33]} bxc5 {[%emt 0:01:44]} 27. Rxc5 {[%emt 0:00:06]} Qb6 {[%emt 0:01:59]} 28. Qc2 {[%emt 0:06:57]} Nb4 {[%emt 0:05:17]} 29. Qc3 {[%emt 0:05:12]} Na2 {[%emt 0:04:06]} 30. Qe3 {[%emt 0:07:39]} Rb4 {[%emt 0:03:29]} 31. Rxb4 {[%emt 0:04:29]} Nxb4 {[%emt 0:00:02]} 32. Qc3 {[%emt 0:00:14]} Na2 {[%emt 0:02:20]} 33. Rc8+ {[%emt 0:11:10]} Bf8 {[%emt 0:00:34]} 34. Qc7 {[%emt 0:00:54]} Qxc7 {[%emt 0:00:31]} 35. Rxc7 {[%emt 0:00:07]} Nb4 {[%emt 0:01:47]} 36. Nd6 {[%emt 0:00:58]} Ra1+ {[%emt 0:01:05]} 37. Bf1 {[%emt 0:00:23]} Rd1 {[%emt 0:01:14]} 38. Nxf7 {[%emt 0:00:27]} Rxd4 {[%emt 0:00:36]} 39. Ng5 {[%emt 0:00:06]} Bh6 {[%emt 0:00:44]} 40. Nxe6 {[%emt 0:00:16]} Rd1 {[%emt 0:00:24]} 41. f4 {[%emt 0:31:39]} d4 {[%emt 0:00:45]} 42. Rc4 {[%emt 0:00:00]} Kf7 {[%emt 0:08:13]} 43. Rxd4 {[%emt 0:00:00]} Rxd4 {[%emt 0:01:51]} 44. Nxd4 {[%emt 0:00:00]} Bf8 {[%emt 0:00:09]} 45. Bc4+ {[%emt 0:00:00]} Ke8 {[%emt 0:00:37]} 46. Kg2 {[%emt 0:00:00]} Bc5 {[%emt 0:02:10]} 47. Nb3 {[%emt 0:00:00]} Bb6 {[%emt 0:00:19]} 48. Kf3 {[%emt 0:00:00]} Ke7 {[%emt 0:00:27]} 49. Ke4 {[%emt 0:00:00]} h5 {[%emt 0:04:47]} 50. Nd4 {[%emt 0:00:00]} Bc5 {[%emt 0:03:22]} 51. g4 {[%emt 0:00:00]} hxg4 {[%emt 0:00:45]} 52. hxg4 {[%emt 0:00:00]} 1-0

[Event "106th British-ch 2019"]
[Site "Torquay"]
[Date "2019.08.01"]
[Round "6.13"]
[White "Zapolskis, Antanas"]
[Black "Ward, Chris G"]
[Result "0-1"]
[ECO "B27"]
[WhiteElo "2290"]
[BlackElo "2418"]
[Annotator "NA"]
[PlyCount "70"]
[EventDate "2019.07.27"]
[EventType "swiss"]
[EventCountry "GBR"]
[SourceTitle "playchess.com"]
[Source "ChessBase"]
[SourceQuality "1"]
[TimeControl "40/5400+30:1800+30"]

1. e4 {[%emt 0:00:20]} c5 {[%emt 0:00:00]} 2. Nf3 {[%emt 0:00:07]} g6 {[%emt 0:00:05]} 3. d4 {[%emt 0:03:58]} cxd4 {[%emt 0:00:41]} 4. Qxd4 {[%emt 0:00:20]} Nf6 {[%emt 0:00:19]} 5. Bb5 {[%emt 0:00:25]} a6 {[%emt 0:00:27]} 6. e5 {[%emt 0:02:07]} axb5 {[%emt 0:00:27]} 7. exf6 {[%emt 0:00:09]} Nc6 {[%emt 0:00:10]} 8. Qd1 {[%emt 0:00:41]} b4 {[%emt 0:02:21]} 9. O-O {[%emt 0:00:09]} e6 {[%emt 0:00:21]} 10. c4 {[%emt 0:09:37]} Qxf6 {[%emt 0:04:31]} 11. Nbd2 {[%emt 0:06:47]} d5 {[%emt 0:25:50]} 12. Qe2 {[%emt 0:21:14]} Be7 {[%emt 0:07:22]} 13. Nb3 {[%emt 0:16:51]} O-O {[%emt 0:16:32]} 14. Bg5 {[%emt 0:02:43]} Qg7 {[%emt 0:04:01]} 15. cxd5 {[%emt 0:07:51]} Bxg5 {[%emt 0:09:22]} 16. dxc6 {[%emt 0:06:32]} Bf6 {[%emt 0:00:03]} 17. c7 {[%emt 0:00:15]} Bd7 {[%emt 0:00:45]} 18. Nc5 {[%emt 0:02:47]} Bc6 {[%emt 0:01:12]} 19. Ne4 {[%emt 0:00:23]} Rfc8 {[%emt 0:02:13]} 20. Nxf6+ {[%emt 0:05:52]} Qxf6 {[%emt 0:00:04]} 21. Ne5 {[%emt 0:00:07]} Rxc7 {[%emt 0:00:25]} 22. Qe3 {[%emt 0:00:47]} h5 {[%emt 0:03:07]} 23. Rfe1 {[%emt 0:01:12]} Bd5 {[%emt 0:01:38]} 24. b3 {[%emt 0:01:50]} Rc2 {[%emt 0:03:53]} 25. h3 {[%emt 0:05:14]} Rac8 {[%emt 0:03:46]} 26. Rad1 {[%emt 0:03:26]} R8c3 {[%emt 0:03:02]} 27. Rd3 {[%emt 0:00:05]} Rxa2 {[%emt 0:02:06]} 28. Rxc3 {[%emt 0:01:10]} bxc3 {[%emt 0:00:12]} 29. b4 {[%emt 0:01:32]} c2 {[%emt 0:02:50]} 30. f3 {[%emt 0:00:00]} Rb2 {[%emt 0:00:36]} 31. Nd7 {[%emt 0:00:15]} Qd8 {[%emt 0:00:52]} 32. Qc3 {[%emt 0:00:29]} Rb1 {[%emt 0:00:41]} 33. Nc5 {[%emt 0:00:39]} Qf6 {[%emt 0:04:15]} 34. Qxf6 {[%emt 0:00:30]} Rxe1+ {[%emt 0:00:05]} 35. Kh2 {[%emt 0:00:01]} c1=Q {[%emt 0:00:11]} 0-1

[Event "106th British-ch 2019"]
[Site "Torquay"]
[Date "2019.08.01"]
[Round "6.14"]
[White "Rudd, Jack"]
[Black "Taylor, Adam C"]
[Result "1-0"]
[ECO "D41"]
[WhiteElo "2275"]
[BlackElo "2402"]
[Annotator "NA"]
[PlyCount "131"]
[EventDate "2019.07.27"]
[EventType "swiss"]
[EventCountry "GBR"]
[SourceTitle "playchess.com"]
[Source "ChessBase"]
[SourceQuality "1"]
[TimeControl "40/5400+30:1800+30"]

1. c4 {[%emt 0:00:00]} Nf6 {[%emt 0:01:30]} 2. Nc3 {[%emt 0:00:00]} e6 {[%emt 0:00:28]} 3. Nf3 {[%emt 0:00:00]} d5 {[%emt 0:00:11]} 4. cxd5 {[%emt 0:00:00]} Nxd5 {[%emt 0:00:31]} 5. e4 {[%emt 0:00:00]} Nxc3 {[%emt 0:00:08]} 6. bxc3 {[%emt 0:00:00]} c5 {[%emt 0:00:06]} 7. d4 {[%emt 0:00:01]} cxd4 {[%emt 0:00:04]} 8. cxd4 {[%emt 0:00:07]} Bb4+ {[%emt 0:00:03]} 9. Bd2 {[%emt 0:00:09]} Bxd2+ {[%emt 0:00:05]} 10. Qxd2 {[%emt 0:00:07]} O-O {[%emt 0:00:03]} 11. Bc4 {[%emt 0:00:08]} Nd7 {[%emt 0:00:04]} 12. O-O {[%emt 0:00:07]} b6 {[%emt 0:00:02]} 13. Rfe1 {[%emt 0:00:26]} Bb7 {[%emt 0:00:05]} 14. Rad1 {[%emt 0:00:06]} Rc8 {[%emt 0:00:16]} 15. Bb3 {[%emt 0:00:57]} h6 {[%emt 0:02:44]} 16. Qf4 {[%emt 0:04:01]} Qc7 {[%emt 0:01:18]} 17. Qxc7 {[%emt 0:01:49]} Rxc7 {[%emt 0:01:39]} 18. d5 {[%emt 0:01:01]} Nc5 {[%emt 0:13:37]} 19. Bc4 {[%emt 0:01:53]} Nxe4 {[%emt 0:10:21]} 20. Rxe4 {[%emt 0:00:21]} exd5 {[%emt 0:00:05]} 21. Bxd5 {[%emt 0:00:17]} Rd8 {[%emt 0:00:04]} 22. Bxf7+ {[%emt 0:00:55]} Kxf7 {[%emt 0:00:02]} 23. Rf4+ {[%emt 0:01:23]} Kg6 {[%emt 0:00:14]} 24. Re1 {[%emt 0:00:10]} Kh7 {[%emt 0:03:03]} 25. h4 {[%emt 0:00:28]} Rc2 {[%emt 0:06:33]} 26. Ne5 {[%emt 0:06:54]} Rxa2 {[%emt 0:08:43]} 27. Rf7 {[%emt 0:01:38]} Bd5 {[%emt 0:00:20]} 28. Re7 {[%emt 0:00:14]} Rf8 {[%emt 0:30:09]} 29. f3 {[%emt 0:00:14]} Rc8 {[%emt 0:01:02]} 30. Nd7 {[%emt 0:00:36]} Kg8 {[%emt 0:04:45]} 31. Rd1 {[%emt 0:00:46]} Bc6 {[%emt 0:09:33]} 32. Ne5 {[%emt 0:01:09]} Be8 {[%emt 0:00:01]} 33. Kh2 {[%emt 0:00:56]} Kf8 {[%emt 0:00:28]} 34. Rb7 {[%emt 0:00:10]} Re2 {[%emt 0:03:28]} 35. Nd7+ {[%emt 0:01:32]} Kg8 {[%emt 0:00:13]} 36. Rd4 {[%emt 0:00:49]} Kh8 {[%emt 0:01:51]} 37. Rg4 {[%emt 0:02:25]} Re7 {[%emt 0:02:38]} 38. Nxb6 {[%emt 0:00:11]} Rxb7 {[%emt 0:00:12]} 39. Nxc8 {[%emt 0:00:05]} Bd7 {[%emt 0:00:33]} 40. Rc4 {[%emt 0:00:16]} a5 {[%emt 0:00:30]} 41. Nd6 {[%emt 0:30:43]} Ra7 {[%emt 0:06:53]} 42. Nf7+ {[%emt 0:00:00]} Kh7 {[%emt 0:01:05]} 43. Ne5 {[%emt 0:00:00]} Bb5 {[%emt 0:03:43]} 44. Rc5 {[%emt 0:00:00]} Rb7 {[%emt 0:00:28]} 45. Rc8 {[%emt 0:00:00]} Re7 {[%emt 0:02:02]} 46. Rc5 {[%emt 0:00:00]} Rb7 {[%emt 0:00:06]} 47. Rc8 {[%emt 0:00:00]} a4 {[%emt 0:00:20]} 48. Ra8 {[%emt 0:00:00]} h5 {[%emt 0:00:49]} 49. Kg3 {[%emt 0:00:00]} Rb6 {[%emt 0:03:29]} 50. Ra5 {[%emt 0:00:00]} Rb8 {[%emt 0:00:46]} 51. Nf7 {[%emt 0:00:00]} Rb6 {[%emt 0:02:14]} 52. Ng5+ {[%emt 0:00:00]} Kg6 {[%emt 0:02:45]} 53. Ne4 {[%emt 0:00:00]} Be8 {[%emt 0:00:37]} 54. Nc3 {[%emt 0:00:00]} Rb4 {[%emt 0:00:32]} 55. Nd5 {[%emt 0:00:00]} Rd4 {[%emt 0:00:43]} 56. Nf4+ {[%emt 0:00:00]} Kh7 {[%emt 0:06:42]} 57. Ra8 {[%emt 0:00:00]} Bc6 {[%emt 0:01:04]} 58. Ra7 {[%emt 0:00:00]} Be8 {[%emt 0:04:51]} 59. Ne6 {[%emt 0:00:00]} Rd6 {[%emt 0:00:41]} 60. Rxg7+ {[%emt 0:00:00]} Kh8 {[%emt 0:00:01]} 61. Re7 {[%emt 0:00:00]} Bd7 {[%emt 0:00:07]} 62. Ng5 {[%emt 0:00:47]} Rd1 {[%emt 0:01:20]} 63. Ne4 {[%emt 0:00:00]} a3 {[%emt 0:00:10]} 64. Nf6 {[%emt 0:00:00]} Bf5 {[%emt 0:00:04]} 65. Ra7 {[%emt 0:00:00]} Rd3 {[%emt 0:00:26]} 66. Kf4 {[%emt 0:00:00]} 1-0

[Event "106th British-ch 2019"]
[Site "Torquay"]
[Date "2019.08.01"]
[Round "6.15"]
[White "Storey, Charles H"]
[Black "D'costa, Lorin Ar"]
[Result "1-0"]
[ECO "A25"]
[WhiteElo "2261"]
[BlackElo "2396"]
[Annotator "NA"]
[PlyCount "39"]
[EventDate "2019.07.27"]
[EventType "swiss"]
[EventCountry "GBR"]
[SourceTitle "playchess.com"]
[Source "ChessBase"]
[SourceQuality "1"]
[TimeControl "40/5400+30:1800+30"]

1. g3 {[%emt 0:02:53]} e5 {[%emt 0:02:12]} 2. c4 {[%emt 0:00:18]} Nc6 {[%emt 0:00:39]} 3. Bg2 {[%emt 0:00:16]} Bc5 {[%emt 0:01:56]} 4. Nc3 {[%emt 0:00:48]} d6 {[%emt 0:00:20]} 5. Na4 {[%emt 0:02:11]} Nge7 {[%emt 0:04:56]} 6. Nxc5 {[%emt 0:05:14]} dxc5 {[%emt 0:00:10]} 7. d3 {[%emt 0:05:46]} O-O {[%emt 0:01:45]} 8. b3 {[%emt 0:01:30]} Be6 {[%emt 0:05:55]} 9. Bb2 {[%emt 0:00:47]} Qd7 {[%emt 0:01:12]} 10. Nf3 {[%emt 0:00:22]} f6 {[%emt 0:00:31]} 11. h4 {[%emt 0:00:34]} a5 {[%emt 0:03:58]} 12. a4 {[%emt 0:01:43]} Rad8 {[%emt 0:04:53]} 13. Bc3 {[%emt 0:00:38]} Nb4 {[%emt 0:13:10]} 14. Nd2 {[%emt 0:05:02]} Nf5 {[%emt 0:05:58]} 15. Ne4 {[%emt 0:03:40]} b6 {[%emt 0:01:07]} 16. Rb1 {[%emt 0:03:09]} Nd4 {[%emt 0:02:27]} 17. Rb2 {[%emt 0:00:45]} h6 {[%emt 0:03:35]} 18. f3 {[%emt 0:10:00]} f5 {[%emt 0:15:47]} 19. Nf2 {[%emt 0:00:04]} Qf7 {[%emt 0:00:52]} 20. e3 {[%emt 0:08:12]} 1-0

[Event "106th British-ch 2019"]
[Site "Torquay"]
[Date "2019.08.01"]
[Round "6.16"]
[White "Derakhshani, Borna"]
[Black "Brewer, Callum D"]
[Result "1-0"]
[ECO "D02"]
[WhiteElo "2300"]
[BlackElo "2086"]
[Annotator "NA"]
[PlyCount "79"]
[EventDate "2019.07.27"]
[EventType "swiss"]
[EventCountry "GBR"]
[SourceTitle "playchess.com"]
[Source "ChessBase"]
[SourceQuality "1"]
[TimeControl "40/5400+30:1800+30"]

1. Nf3 {[%emt 0:01:46]} Nf6 {[%emt 0:00:06]} 2. d4 {[%emt 0:00:04]} d5 {[%emt 0:00:11]} 3. Bf4 {[%emt 0:00:05]} c5 {[%emt 0:00:11]} 4. c3 {[%emt 0:00:42]} Nc6 {[%emt 0:10:49]} 5. e3 {[%emt 0:00:48]} Qb6 {[%emt 0:00:10]} 6. Qb3 {[%emt 0:00:20]} c4 {[%emt 0:00:01]} 7. Qc2 {[%emt 0:00:07]} Bf5 {[%emt 0:00:02]} 8. Qc1 {[%emt 0:00:07]} Nh5 {[%emt 0:01:53]} 9. Bg5 {[%emt 0:01:25]} f6 {[%emt 0:02:16]} 10. Bh4 {[%emt 0:01:06]} e5 {[%emt 0:00:54]} 11. Be2 {[%emt 0:01:14]} Bg6 {[%emt 0:04:55]} 12. g4 {[%emt 0:01:39]} Bxb1 {[%emt 0:04:08]} 13. Rxb1 {[%emt 0:00:29]} e4 {[%emt 0:01:05]} 14. gxh5 {[%emt 0:00:31]} exf3 {[%emt 0:00:01]} 15. Bxf3 {[%emt 0:00:11]} Rd8 {[%emt 0:08:29]} 16. Qc2 {[%emt 0:00:59]} Ne7 {[%emt 0:02:25]} 17. Rg1 {[%emt 0:03:45]} g5 {[%emt 0:01:47]} 18. Bg3 {[%emt 0:00:32]} Qe6 {[%emt 0:03:04]} 19. Kd2 {[%emt 0:07:12]} Bg7 {[%emt 0:01:43]} 20. h4 {[%emt 0:01:01]} O-O {[%emt 0:03:27]} 21. Rbe1 {[%emt 0:01:43]} g4 {[%emt 0:04:51]} 22. h6 {[%emt 0:04:51]} Bxh6 {[%emt 0:02:28]} 23. Bxg4 {[%emt 0:01:24]} Qa6 {[%emt 0:01:22]} 24. Bc7 {[%emt 0:02:35]} Ra8 {[%emt 0:00:59]} 25. b4 {[%emt 0:13:08]} Kh8 {[%emt 0:04:48]} 26. a4 {[%emt 0:01:12]} b6 {[%emt 0:00:53]} 27. Bd6 {[%emt 0:00:50]} Qb7 {[%emt 0:00:02]} 28. Kd1 {[%emt 0:06:48]} Rad8 {[%emt 0:01:47]} 29. Bh2 {[%emt 0:00:29]} Nc6 {[%emt 0:04:12]} 30. b5 {[%emt 0:03:57]} Ne7 {[%emt 0:01:52]} 31. Be6 {[%emt 0:04:15]} a6 {[%emt 0:02:21]} 32. Qe2 {[%emt 0:07:06]} axb5 {[%emt 0:01:59]} 33. Qh5 {[%emt 0:00:22]} Bg7 {[%emt 0:00:10]} 34. Qg4 {[%emt 0:00:31]} Ng8 {[%emt 0:00:17]} 35. Bf4 {[%emt 0:02:11]} Qe7 {[%emt 0:06:33]} 36. axb5 {[%emt 0:01:15]} Nh6 {[%emt 0:05:09]} 37. Qxg7+ {[%emt 0:00:17]} Qxg7 {[%emt 0:00:11]} 38. Rxg7 {[%emt 0:00:05]} Kxg7 {[%emt 0:00:05]} 39. Rg1+ {[%emt 0:00:02]} Kh8 {[%emt 0:00:18]} 40. Bxh6 {[%emt 0:00:04]} 1-0